[Event "Early-Titled-Tuesday-Blitz-March-19-2024"]
[Site "Chess.com"]
[Date "2024.03.19"]
[Round "4"]
[White "DmitriiZakurdaev"]
[Black "Zq1"]
[Result "0-1"]
[WhiteElo "2425"]
[BlackElo "2601"]
[TimeControl "180+1"]
[EndTime "8:40:09 PDT"]
[Termination "Zq1 won by resignation"]

1. d4 {[%clk 0:03:00.9]} 1... Nf6 {[%clk 0:02:58.9]} 2. c4 {[%clk 0:03:01.4]}
2... a6 {[%clk 0:02:58.8]} 3. Nc3 {[%clk 0:03:01.5]} 3... c5 {[%clk 0:02:58.1]}
4. d5 {[%clk 0:03:01.5]} 4... b5 {[%clk 0:02:57.6]} 5. cxb5 {[%clk 0:03:01.6]}
5... axb5 {[%clk 0:02:57.3]} 6. Nxb5 {[%clk 0:03:01.9]} 6... Qa5+ {[%clk
0:02:56.3]} 7. Nc3 {[%clk 0:03:02.1]} 7... Bb7 {[%clk 0:02:56.4]} 8. Bd2 {[%clk
0:02:57.5]} 8... Qb6 {[%clk 0:02:55.6]} 9. e4 {[%clk 0:02:51.7]} 9... e6 {[%clk
0:02:53.9]} 10. dxe6 {[%clk 0:02:21.5]} 10... fxe6 {[%clk 0:02:53.2]} 11. Qc2
{[%clk 0:02:22.1]} 11... Nc6 {[%clk 0:02:51.8]} 12. Nf3 {[%clk 0:02:19.7]} 12...
Nd4 {[%clk 0:02:51.4]} 13. Qb1 {[%clk 0:02:06.9]} 13... Be7 {[%clk 0:02:48.3]}
14. Bd3 {[%clk 0:01:57.9]} 14... Bd6 {[%clk 0:02:16.7]} 15. Nxd4 {[%clk
0:01:46.3]} 15... cxd4 {[%clk 0:02:16.2]} 16. Nb5 {[%clk 0:01:44.4]} 16... Bb8
{[%clk 0:02:06.5]} 17. O-O {[%clk 0:01:35.6]} 17... O-O {[%clk 0:02:05.1]} 18.
a4 {[%clk 0:01:30.5]} 18... h6 {[%clk 0:01:48.6]} 19. h3 {[%clk 0:01:29.3]}
19... d5 {[%clk 0:01:45.5]} 20. e5 {[%clk 0:01:08.1]} 20... Bxe5 {[%clk
0:01:41.5]} 21. Re1 {[%clk 0:01:08.7]} 21... Ne4 {[%clk 0:01:33.5]} 22. Bb4
{[%clk 0:00:48.7]} 22... Rf7 {[%clk 0:01:18.8]} 23. Bxe4 {[%clk 0:00:44.7]}
23... dxe4 {[%clk 0:01:17.8]} 24. Rxe4 {[%clk 0:00:45]} 24... d3 {[%clk
0:00:57.3]} 25. Re3 {[%clk 0:00:28.7]} 25... Qc6 {[%clk 0:00:44.7]} 26. Qf1
{[%clk 0:00:25]} 26... Bxb2 {[%clk 0:00:37.5]} 27. Ra2 {[%clk 0:00:19.4]} 27...
Rxa4 {[%clk 0:00:20.1]} 28. Rxb2 {[%clk 0:00:13.1]} 28... Qxb5 {[%clk 0:00:20]}
29. Bc3 {[%clk 0:00:10.3]} 29... Qc4 {[%clk 0:00:18.4]} 30. Qxd3 {[%clk
0:00:10.7]} 30... Ra1+ {[%clk 0:00:17.1]} 31. Kh2 {[%clk 0:00:10.2]} 31... Qc6
{[%clk 0:00:14.1]} 32. Rg3 {[%clk 0:00:10.3]} 32... Qe4 {[%clk 0:00:12]} 33.
Qd8+ {[%clk 0:00:10]} 33... Kh7 {[%clk 0:00:10.3]} 34. Qe8 {[%clk 0:00:06.2]}
34... Qf5 {[%clk 0:00:08.9]} 35. Re2 {[%clk 0:00:04.1]} 35... Ra3 {[%clk
0:00:07.8]} 36. Re5 {[%clk 0:00:03.9]} 36... Qf4 {[%clk 0:00:03.9]} 37. Rxe6
{[%clk 0:00:03.7]} 37... Rxc3 {[%clk 0:00:03.1]} 38. Qxf7 {[%clk 0:00:03.9]}
38... Qxf7 {[%clk 0:00:02.2]} 39. Rxg7+ {[%clk 0:00:04]} 39... Qxg7 {[%clk
0:00:02.2]} 40. Rg6 {[%clk 0:00:04.9]} 40... Qxg6 {[%clk 0:00:02.4]} 0-1

[Event "Early-Titled-Tuesday-Blitz-March-19-2024"]
[Site "Chess.com"]
[Date "2024.03.19"]
[Round "4"]
[White "Happy1712Drummer"]
[Black "jk13"]
[Result "1-0"]
[WhiteElo "2464"]
[BlackElo "2673"]
[TimeControl "180+1"]
[EndTime "8:40:11 PDT"]
[Termination "Happy1712Drummer won by resignation"]

1. e4 {[%clk 0:03:00.9]} 1... e5 {[%clk 0:02:59.3]} 2. Nf3 {[%clk 0:03:01]} 2...
Nc6 {[%clk 0:03:00]} 3. Nc3 {[%clk 0:03:01.6]} 3... Nf6 {[%clk 0:03:00.3]} 4. d4
{[%clk 0:03:02]} 4... exd4 {[%clk 0:03:00.5]} 5. Nd5 {[%clk 0:03:02.6]} 5... Be7
{[%clk 0:02:57.8]} 6. Bd3 {[%clk 0:03:01.7]} 6... O-O {[%clk 0:02:55.2]} 7. O-O
{[%clk 0:03:01.4]} 7... d6 {[%clk 0:02:55.6]} 8. h3 {[%clk 0:03:02]} 8... Nxd5
{[%clk 0:02:41.3]} 9. exd5 {[%clk 0:03:01.8]} 9... Ne5 {[%clk 0:02:41.7]} 10.
Nxd4 {[%clk 0:03:02.5]} 10... Nxd3 {[%clk 0:02:40.9]} 11. Qxd3 {[%clk
0:03:03.4]} 11... Bf6 {[%clk 0:02:40.4]} 12. Re1 {[%clk 0:03:00.8]} 12... Bd7
{[%clk 0:02:35.4]} 13. Bd2 {[%clk 0:02:53.1]} 13... Re8 {[%clk 0:02:30.3]} 14.
a4 {[%clk 0:02:25.6]} 14... Rxe1+ {[%clk 0:02:24.4]} 15. Bxe1 {[%clk 0:01:54.8]}
15... Be5 {[%clk 0:02:13.8]} 16. c3 {[%clk 0:01:42.3]} 16... Qf6 {[%clk
0:02:01.6]} 17. Nf3 {[%clk 0:01:34.1]} 17... Re8 {[%clk 0:01:51]} 18. Bd2 {[%clk
0:01:17.4]} 18... a5 {[%clk 0:01:34.2]} 19. b3 {[%clk 0:00:53.6]} 19... Bf4
{[%clk 0:01:13.9]} 20. Re1 {[%clk 0:00:44.6]} 20... Rxe1+ {[%clk 0:01:07.7]} 21.
Nxe1 {[%clk 0:00:40.9]} 21... Bxd2 {[%clk 0:00:54.3]} 22. Qxd2 {[%clk
0:00:41.8]} 22... Qg6 {[%clk 0:00:52.9]} 23. Qd3 {[%clk 0:00:34.8]} 23... Qxd3
{[%clk 0:00:47.6]} 24. Nxd3 {[%clk 0:00:34.6]} 24... Bf5 {[%clk 0:00:48.5]} 25.
Nc1 {[%clk 0:00:26]} 25... h5 {[%clk 0:00:41.7]} 26. Kf1 {[%clk 0:00:25.1]}
26... h4 {[%clk 0:00:39.4]} 27. Ke2 {[%clk 0:00:25.2]} 27... g5 {[%clk
0:00:38.9]} 28. Ke3 {[%clk 0:00:23]} 28... Kg7 {[%clk 0:00:37]} 29. b4 {[%clk
0:00:20.6]} 29... Bd7 {[%clk 0:00:28.7]} 30. bxa5 {[%clk 0:00:19.2]} 30... Bxa4
{[%clk 0:00:28.9]} 31. Nd3 {[%clk 0:00:18.4]} 31... Bb3 {[%clk 0:00:27.5]} 32.
Nb4 {[%clk 0:00:16.6]} 32... Kf6 {[%clk 0:00:26.6]} 33. Kd4 {[%clk 0:00:17]}
33... Kf5 {[%clk 0:00:24.6]} 34. a6 {[%clk 0:00:17.4]} 34... bxa6 {[%clk
0:00:19.5]} 35. Nxa6 {[%clk 0:00:18.3]} 35... Ba4 {[%clk 0:00:10.5]} 36. Nxc7
{[%clk 0:00:17.4]} 36... g4 {[%clk 0:00:09.1]} 37. hxg4+ {[%clk 0:00:17.3]}
37... Kxg4 {[%clk 0:00:09.5]} 38. c4 {[%clk 0:00:17.8]} 38... Bd7 {[%clk
0:00:07.9]} 39. Nb5 {[%clk 0:00:16.7]} 39... Kf4 {[%clk 0:00:04.8]} 40. Nxd6
{[%clk 0:00:15.3]} 40... Bg4 {[%clk 0:00:05.3]} 41. c5 {[%clk 0:00:14.4]} 41...
Bf3 {[%clk 0:00:06]} 42. g3+ {[%clk 0:00:13.9]} 42... hxg3 {[%clk 0:00:05.8]}
43. fxg3+ {[%clk 0:00:14.4]} 43... Kxg3 {[%clk 0:00:06.4]} 44. c6 {[%clk
0:00:15]} 44... Bg4 {[%clk 0:00:07]} 45. Nxf7 {[%clk 0:00:14.3]} 45... Kf4
{[%clk 0:00:06.8]} 46. d6 {[%clk 0:00:14.2]} 46... Be6 {[%clk 0:00:06.2]} 47. d7
{[%clk 0:00:14.1]} 1-0

[Event "Early-Titled-Tuesday-Blitz-March-19-2024"]
[Site "Chess.com"]
[Date "2024.03.19"]
[Round "4"]
[White "tusplingher"]
[Black "NikitaShnadrygin"]
[Result "1-0"]
[WhiteElo "2477"]
[BlackElo "2700"]
[TimeControl "180+1"]
[EndTime "8:40:13 PDT"]
[Termination "tusplingher won by resignation"]

1. e4 {[%clk 0:03:00.9]} 1... c5 {[%clk 0:03:00]} 2. Nf3 {[%clk 0:03:00]} 2...
e6 {[%clk 0:03:00]} 3. d4 {[%clk 0:02:59.2]} 3... cxd4 {[%clk 0:03:00.9]} 4.
Nxd4 {[%clk 0:02:58]} 4... Nf6 {[%clk 0:03:01.3]} 5. Nc3 {[%clk 0:02:57.7]} 5...
Nc6 {[%clk 0:03:01]} 6. Ndb5 {[%clk 0:02:55.1]} 6... Bb4 {[%clk 0:03:00.7]} 7.
Bf4 {[%clk 0:02:52.5]} 7... Nxe4 {[%clk 0:02:57.4]} 8. Qf3 {[%clk 0:02:11.4]}
8... d5 {[%clk 0:02:55.2]} 9. Nc7+ {[%clk 0:02:10.7]} 9... Kf8 {[%clk
0:02:53.8]} 10. Nxa8 {[%clk 0:02:10]} 10... e5 {[%clk 0:02:12.6]} 11. Bd2 {[%clk
0:02:07.1]} 11... Nxd2 {[%clk 0:02:06.6]} 12. Qxd5 {[%clk 0:02:02.9]} 12... Qxd5
{[%clk 0:00:50.9]} 13. Nxd5 {[%clk 0:02:01.9]} 13... Ba5 {[%clk 0:00:24.6]} 14.
c3 {[%clk 0:01:18.9]} 14... Ne4 {[%clk 0:00:24.7]} 15. Bb5 {[%clk 0:01:10]}
15... Be6 {[%clk 0:00:18.5]} 16. Nac7 {[%clk 0:01:05.1]} 16... Nd6 {[%clk
0:00:09.3]} 17. Nxe6+ {[%clk 0:00:57.6]} 17... fxe6 {[%clk 0:00:10.2]} 18. Bxc6
{[%clk 0:00:57.8]} 18... bxc6 {[%clk 0:00:09.1]} 19. Ne3 {[%clk 0:00:57.7]}
19... Ke7 {[%clk 0:00:08.7]} 20. Ke2 {[%clk 0:00:51.8]} 20... Rb8 {[%clk
0:00:07.8]} 21. Rab1 {[%clk 0:00:50.9]} 21... Bb6 {[%clk 0:00:06.4]} 22. Rhd1
{[%clk 0:00:48.4]} 22... a5 {[%clk 0:00:06.5]} 23. b3 {[%clk 0:00:46.9]} 23...
Nf5 {[%clk 0:00:04.5]} 24. Nc4 {[%clk 0:00:43.3]} 24... Bc7 {[%clk 0:00:04.6]}
25. Rd2 {[%clk 0:00:41.6]} 25... Rb5 {[%clk 0:00:04.8]} 26. Rbd1 {[%clk
0:00:40.1]} 26... Rd5 {[%clk 0:00:04.7]} 27. Ne3 {[%clk 0:00:40]} 27... Nxe3
{[%clk 0:00:05]} 28. fxe3 {[%clk 0:00:35.2]} 28... e4 {[%clk 0:00:05.7]} 29. Rd4
{[%clk 0:00:32.3]} 29... Be5 {[%clk 0:00:05.6]} 30. Rxe4 {[%clk 0:00:30.5]}
30... Bxc3 {[%clk 0:00:06.3]} 31. Rc4 {[%clk 0:00:27.7]} 31... Bb4 {[%clk
0:00:04.7]} 32. Rxc6 {[%clk 0:00:25.9]} 32... Rg5 {[%clk 0:00:04.5]} 33. g3
{[%clk 0:00:24.8]} 33... Rh5 {[%clk 0:00:04.3]} 34. h4 {[%clk 0:00:24.8]} 34...
Rh6 {[%clk 0:00:04.1]} 35. Rc7+ {[%clk 0:00:20.8]} 35... Kf6 {[%clk 0:00:04.2]}
36. Rdd7 {[%clk 0:00:20.6]} 36... Rg6 {[%clk 0:00:03.8]} 37. Kf3 {[%clk
0:00:20.9]} 37... Ke5 {[%clk 0:00:02.3]} 38. Rxg7 {[%clk 0:00:18.8]} 38... Rf6+
{[%clk 0:00:02.6]} 39. Ke2 {[%clk 0:00:16.6]} 39... h6 {[%clk 0:00:02.7]} 40. h5
{[%clk 0:00:14.3]} 40... Rf5 {[%clk 0:00:02.3]} 41. Rb7 {[%clk 0:00:14.6]} 41...
Ke4 {[%clk 0:00:01.6]} 42. Rg4+ {[%clk 0:00:14.4]} 42... Kd5 {[%clk 0:00:02.2]}
43. Rbxb4 {[%clk 0:00:14.5]} 43... axb4 {[%clk 0:00:02]} 44. e4+ {[%clk
0:00:15]} 44... Kc6 {[%clk 0:00:02.9]} 45. exf5 {[%clk 0:00:15.9]} 45... exf5
{[%clk 0:00:03.4]} 46. Rg6+ {[%clk 0:00:16.2]} 1-0

[Event "Early-Titled-Tuesday-Blitz-March-19-2024"]
[Site "Chess.com"]
[Date "2024.03.19"]
[Round "4"]
[White "Witik"]
[Black "Slovineanu"]
[Result "1/2-1/2"]
[WhiteElo "2758"]
[BlackElo "2498"]
[TimeControl "180+1"]
[EndTime "8:40:14 PDT"]
[Termination "Game drawn by repetition"]

1. d4 {[%clk 0:02:59.8]} 1... Nf6 {[%clk 0:02:59.4]} 2. c4 {[%clk 0:03:00]} 2...
e6 {[%clk 0:02:59.3]} 3. Nf3 {[%clk 0:03:00.3]} 3... d5 {[%clk 0:02:59.7]} 4.
Nc3 {[%clk 0:03:00]} 4... c5 {[%clk 0:02:59.1]} 5. cxd5 {[%clk 0:02:59.5]} 5...
Nxd5 {[%clk 0:02:59.2]} 6. e3 {[%clk 0:02:58.8]} 6... cxd4 {[%clk 0:02:58.6]} 7.
exd4 {[%clk 0:02:58.4]} 7... Bb4 {[%clk 0:02:58.7]} 8. Bd2 {[%clk 0:02:58.5]}
8... O-O {[%clk 0:02:58.1]} 9. Bd3 {[%clk 0:02:58.7]} 9... b6 {[%clk 0:02:58.1]}
10. Nxd5 {[%clk 0:02:07.7]} 10... Bxd2+ {[%clk 0:02:54.5]} 11. Nxd2 {[%clk
0:02:07.9]} 11... exd5 {[%clk 0:02:54.9]} 12. O-O {[%clk 0:02:08.6]} 12... Nc6
{[%clk 0:02:50.6]} 13. Nb3 {[%clk 0:01:46.3]} 13... Qf6 {[%clk 0:02:19.4]} 14.
Qh5 {[%clk 0:01:34.6]} 14... g6 {[%clk 0:01:55]} 15. Qxd5 {[%clk 0:01:34.3]}
15... Rd8 {[%clk 0:01:46.3]} 16. Qb5 {[%clk 0:01:17.5]} 16... Nxd4 {[%clk
0:01:37]} 17. Nxd4 {[%clk 0:01:17.7]} 17... Qxd4 {[%clk 0:01:36.3]} 18. Rad1
{[%clk 0:01:07.4]} 18... Bg4 {[%clk 0:01:26.8]} 19. Be2 {[%clk 0:01:04.4]} 19...
Bxe2 {[%clk 0:01:25]} 20. Qxe2 {[%clk 0:01:04.9]} 20... Qc5 {[%clk 0:01:21.1]}
21. Rc1 {[%clk 0:00:59.6]} 21... Qd5 {[%clk 0:01:20.9]} 22. Qa6 {[%clk
0:00:53.5]} 22... Rd7 {[%clk 0:01:13.8]} 23. h3 {[%clk 0:00:52]} 23... Rad8
{[%clk 0:01:12.6]} 24. Rfe1 {[%clk 0:00:52.2]} 24... h5 {[%clk 0:01:11.7]} 25.
a3 {[%clk 0:00:51.4]} 25... Qd2 {[%clk 0:01:05.7]} 26. b4 {[%clk 0:00:50]} 26...
Qf4 {[%clk 0:00:57.6]} 27. Rc8 {[%clk 0:00:40.5]} 27... Qd2 {[%clk 0:00:22.8]}
28. Rf1 {[%clk 0:00:28.4]} 28... Rxc8 {[%clk 0:00:22.2]} 29. Qxc8+ {[%clk
0:00:28.2]} 29... Kg7 {[%clk 0:00:22.7]} 30. Qa6 {[%clk 0:00:26.2]} 30... Qd3
{[%clk 0:00:21.5]} 31. Qc8 {[%clk 0:00:19.3]} 31... a5 {[%clk 0:00:20.1]} 32.
bxa5 {[%clk 0:00:17.3]} 32... bxa5 {[%clk 0:00:20.5]} 33. a4 {[%clk 0:00:18]}
33... Rd4 {[%clk 0:00:19.5]} 34. Qc5 {[%clk 0:00:10.3]} 34... Qc4 {[%clk
0:00:17.1]} 35. Qe5+ {[%clk 0:00:09.4]} 35... Kh7 {[%clk 0:00:17.5]} 36. Qxa5
{[%clk 0:00:07.8]} 36... Qxa4 {[%clk 0:00:17]} 37. Qc7 {[%clk 0:00:08.4]} 37...
Qc4 {[%clk 0:00:15.3]} 38. Qe7 {[%clk 0:00:06.4]} 38... Re4 {[%clk 0:00:15.1]}
39. Qf6 {[%clk 0:00:06.3]} 39... Qe6 {[%clk 0:00:13.9]} 40. Qf3 {[%clk
0:00:06.2]} 40... Kg7 {[%clk 0:00:13]} 41. Qc3+ {[%clk 0:00:05.2]} 41... Qe5
{[%clk 0:00:12.7]} 42. Qf3 {[%clk 0:00:05.3]} 42... Re1 {[%clk 0:00:12.5]} 43.
Rxe1 {[%clk 0:00:05.1]} 43... Qxe1+ {[%clk 0:00:13.1]} 44. Kh2 {[%clk
0:00:05.8]} 44... Qe5+ {[%clk 0:00:13.6]} 45. Kg1 {[%clk 0:00:05.9]} 45... Qe1+
{[%clk 0:00:13.4]} 46. Kh2 {[%clk 0:00:06.4]} 46... Qe5+ {[%clk 0:00:14.1]} 47.
Kg1 {[%clk 0:00:06.7]} 47... Qe1+ {[%clk 0:00:13.9]} 1/2-1/2

[Event "Early-Titled-Tuesday-Blitz-March-19-2024"]
[Site "Chess.com"]
[Date "2024.03.19"]
[Round "4"]
[White "NtcPou"]
[Black "Felix-Rose"]
[Result "0-1"]
[WhiteElo "1985"]
[BlackElo "2261"]
[TimeControl "180+1"]
[EndTime "8:40:14 PDT"]
[Termination "Felix-Rose won by resignation"]

1. e4 {[%clk 0:03:00.9]} 1... c6 {[%clk 0:02:59.5]} 2. d4 {[%clk 0:03:00.7]}
2... d5 {[%clk 0:02:59.9]} 3. e5 {[%clk 0:03:01]} 3... Bf5 {[%clk 0:02:59.7]} 4.
Nd2 {[%clk 0:03:00.6]} 4... e6 {[%clk 0:02:59.7]} 5. Nb3 {[%clk 0:03:00.8]} 5...
Ne7 {[%clk 0:02:58.5]} 6. Nf3 {[%clk 0:03:00.6]} 6... Nd7 {[%clk 0:02:58.4]} 7.
Be2 {[%clk 0:03:00.4]} 7... c5 {[%clk 0:02:58.5]} 8. dxc5 {[%clk 0:02:55.2]}
8... Nc6 {[%clk 0:02:57.9]} 9. Be3 {[%clk 0:02:54.3]} 9... Ndxe5 {[%clk
0:02:54.1]} 10. O-O {[%clk 0:02:46]} 10... Nxf3+ {[%clk 0:02:42.9]} 11. Bxf3
{[%clk 0:02:45.7]} 11... Be7 {[%clk 0:02:43]} 12. Nd4 {[%clk 0:02:34.4]} 12...
Nxd4 {[%clk 0:02:28.6]} 13. Bxd4 {[%clk 0:02:32.1]} 13... O-O {[%clk 0:02:28.8]}
14. c4 {[%clk 0:02:31.5]} 14... dxc4 {[%clk 0:02:24.4]} 15. Bxb7 {[%clk
0:02:31.1]} 15... Rb8 {[%clk 0:02:19]} 16. c6 {[%clk 0:02:31.4]} 16... Qc7
{[%clk 0:00:55.1]} 17. Bxa7 {[%clk 0:02:27]} 17... Rbd8 {[%clk 0:00:54.8]} 18.
Qf3 {[%clk 0:02:26.2]} 18... Rd3 {[%clk 0:00:49.4]} 19. Qe2 {[%clk 0:02:17.6]}
19... Rfd8 {[%clk 0:00:35.4]} 20. Rfd1 {[%clk 0:02:16.5]} 20... Bd6 {[%clk
0:00:35.7]} 21. h3 {[%clk 0:02:12.5]} 21... Bh2+ {[%clk 0:00:35.1]} 22. Kh1
{[%clk 0:02:01.9]} 22... Be5 {[%clk 0:00:35.1]} 23. Rxd3 {[%clk 0:01:54.5]}
23... cxd3 {[%clk 0:00:34.6]} 24. Qf3 {[%clk 0:01:52]} 24... Bxb2 {[%clk
0:00:28.7]} 25. Rb1 {[%clk 0:01:49.4]} 25... d2 {[%clk 0:00:29]} 26. Rd1 {[%clk
0:01:37.2]} 26... Bc2 {[%clk 0:00:27.8]} 27. Be3 {[%clk 0:01:21.8]} 27... Bxd1
{[%clk 0:00:26.1]} 28. Qxd1 {[%clk 0:01:22.7]} 28... Bc3 {[%clk 0:00:22]} 29. a4
{[%clk 0:01:20.9]} 29... Ba5 {[%clk 0:00:22]} 30. Kg1 {[%clk 0:01:13.5]} 30...
Rd5 {[%clk 0:00:22]} 31. Kf1 {[%clk 0:01:11.3]} 31... h6 {[%clk 0:00:21]} 32.
Ke2 {[%clk 0:01:11.5]} 32... Qe5 {[%clk 0:00:14.7]} 33. Kf1 {[%clk 0:01:06.8]}
33... Qb2 {[%clk 0:00:11.6]} 34. Ba6 {[%clk 0:01:00.2]} 34... Qb8 {[%clk
0:00:05.7]} 35. Bb5 {[%clk 0:00:57.2]} 35... Qd6 {[%clk 0:00:06]} 36. g3 {[%clk
0:00:54.1]} 36... f5 {[%clk 0:00:06.3]} 37. Bf4 {[%clk 0:00:54.1]} 37... Qc5
{[%clk 0:00:05]} 38. Be3 {[%clk 0:00:54.3]} 38... Qd6 {[%clk 0:00:04.2]} 39. Bf4
{[%clk 0:00:54.3]} 39... e5 {[%clk 0:00:04.9]} 40. Be3 {[%clk 0:00:54.2]} 40...
f4 {[%clk 0:00:05.4]} 41. Ba7 {[%clk 0:00:51.2]} 41... Rxb5 {[%clk 0:00:05.6]}
42. axb5 {[%clk 0:00:50.6]} 42... Qd3+ {[%clk 0:00:06.2]} 43. Kg1 {[%clk
0:00:49.3]} 43... fxg3 {[%clk 0:00:06.9]} 44. fxg3 {[%clk 0:00:48.2]} 44...
Qxg3+ {[%clk 0:00:07.4]} 45. Kf1 {[%clk 0:00:46.4]} 45... Qe1+ {[%clk
0:00:08.2]} 46. Qxe1 {[%clk 0:00:44.3]} 46... dxe1=Q+ {[%clk 0:00:09.1]} 47. Kg2
{[%clk 0:00:45.2]} 47... Qe2+ {[%clk 0:00:08.5]} 48. Bf2 {[%clk 0:00:45]} 48...
Qxb5 {[%clk 0:00:09.4]} 49. c7 {[%clk 0:00:44.5]} 49... Qc6+ {[%clk 0:00:09.9]}
50. Kg3 {[%clk 0:00:44.2]} 50... Bxc7 {[%clk 0:00:10.8]} 51. Be3 {[%clk
0:00:43.9]} 51... e4+ {[%clk 0:00:11.7]} 52. Bf4 {[%clk 0:00:44]} 52... Qg6+
{[%clk 0:00:11.9]} 53. Kf2 {[%clk 0:00:43.9]} 53... Bxf4 {[%clk 0:00:12.8]} 0-1

[Event "Early-Titled-Tuesday-Blitz-March-19-2024"]
[Site "Chess.com"]
[Date "2024.03.19"]
[Round "4"]
[White "AlanZhang"]
[Black "MalyDominator"]
[Result "0-1"]
[WhiteElo "2228"]
[BlackElo "2543"]
[TimeControl "180+1"]
[EndTime "8:40:15 PDT"]
[Termination "MalyDominator won on time"]

1. e4 {[%clk 0:02:57.1]} 1... c6 {[%clk 0:02:56.5]} 2. d4 {[%clk 0:02:56.7]}
2... d5 {[%clk 0:02:57.4]} 3. Nc3 {[%clk 0:02:57.1]} 3... dxe4 {[%clk
0:02:57.3]} 4. Nxe4 {[%clk 0:02:58]} 4... Bf5 {[%clk 0:02:57.2]} 5. Ng3 {[%clk
0:02:58.2]} 5... Bg6 {[%clk 0:02:57.7]} 6. h4 {[%clk 0:02:58.9]} 6... h6 {[%clk
0:02:57.9]} 7. Nf3 {[%clk 0:02:59.6]} 7... Nd7 {[%clk 0:02:57.4]} 8. h5 {[%clk
0:02:59.9]} 8... Bh7 {[%clk 0:02:57.4]} 9. Bd3 {[%clk 0:03:00.6]} 9... Bxd3
{[%clk 0:02:57.7]} 10. Qxd3 {[%clk 0:03:00.2]} 10... e6 {[%clk 0:02:58.3]} 11.
Bd2 {[%clk 0:03:00.6]} 11... Ngf6 {[%clk 0:02:58.7]} 12. O-O-O {[%clk
0:03:01.1]} 12... Be7 {[%clk 0:02:59.3]} 13. Kb1 {[%clk 0:03:00.8]} 13... O-O
{[%clk 0:02:59.7]} 14. Ne4 {[%clk 0:03:01]} 14... Nxe4 {[%clk 0:02:59.7]} 15.
Qxe4 {[%clk 0:03:01.9]} 15... Nf6 {[%clk 0:03:00.1]} 16. Qe2 {[%clk 0:03:02.6]}
16... Qd5 {[%clk 0:03:00.6]} 17. Ne5 {[%clk 0:03:02.4]} 17... Qe4 {[%clk
0:02:53.6]} 18. Be3 {[%clk 0:03:00.6]} 18... Nd5 {[%clk 0:02:50.6]} 19. Rde1
{[%clk 0:02:43]} 19... Rad8 {[%clk 0:02:31.8]} 20. g4 {[%clk 0:02:35.5]} 20...
c5 {[%clk 0:02:27.3]} 21. Nf3 {[%clk 0:02:06.2]} 21... cxd4 {[%clk 0:02:18.4]}
22. Bxd4 {[%clk 0:01:35.9]} 22... Qxe2 {[%clk 0:02:15.5]} 23. Rxe2 {[%clk
0:01:36.8]} 23... a6 {[%clk 0:02:09]} 24. Rd1 {[%clk 0:01:25.6]} 24... Rc8
{[%clk 0:02:02.9]} 25. c3 {[%clk 0:01:16.1]} 25... b5 {[%clk 0:01:55.4]} 26. a3
{[%clk 0:01:06.2]} 26... a5 {[%clk 0:01:42.9]} 27. Ne5 {[%clk 0:00:59.4]} 27...
b4 {[%clk 0:01:33.6]} 28. axb4 {[%clk 0:00:51.3]} 28... axb4 {[%clk 0:01:32.5]}
29. c4 {[%clk 0:00:51.6]} 29... Nf4 {[%clk 0:01:29.5]} 30. Re4 {[%clk 0:00:46]}
30... Nh3 {[%clk 0:01:27]} 31. f4 {[%clk 0:00:17.3]} 31... Rfd8 {[%clk
0:00:48.2]} 32. Nd3 {[%clk 0:00:15.1]} 32... f5 {[%clk 0:00:41.3]} 33. Rxe6
{[%clk 0:00:13.6]} 33... Rxd4 {[%clk 0:00:38.8]} 34. Rxe7 {[%clk 0:00:12.5]}
34... Nxf4 {[%clk 0:00:38.3]} 35. Re3 {[%clk 0:00:08.2]} 35... Rcd8 {[%clk
0:00:35.2]} 36. Kc2 {[%clk 0:00:07.9]} 36... fxg4 {[%clk 0:00:35.3]} 37. b3
{[%clk 0:00:05.4]} 37... g6 {[%clk 0:00:23.5]} 38. Nf2 {[%clk 0:00:05.3]} 38...
Rxd1 {[%clk 0:00:21.1]} 39. Nxd1 {[%clk 0:00:06.2]} 39... gxh5 {[%clk
0:00:21.3]} 40. Re4 {[%clk 0:00:05.9]} 40... Ng6 {[%clk 0:00:17.7]} 41. Re6
{[%clk 0:00:05.5]} 41... Kf7 {[%clk 0:00:17.6]} 42. Re2 {[%clk 0:00:04.6]} 42...
g3 {[%clk 0:00:17.3]} 43. Ne3 {[%clk 0:00:04.3]} 43... h4 {[%clk 0:00:17.8]} 44.
Nf5 {[%clk 0:00:03.7]} 44... Kf6 {[%clk 0:00:18]} 45. Nxh6 {[%clk 0:00:03.5]}
45... h3 {[%clk 0:00:18.3]} 46. Ng4+ {[%clk 0:00:03.7]} 46... Kg5 {[%clk
0:00:18.7]} 47. Ne3 {[%clk 0:00:03.5]} 47... h2 {[%clk 0:00:18.3]} 48. Re1
{[%clk 0:00:02.7]} 48... Re8 {[%clk 0:00:18.3]} 49. Kd3 {[%clk 0:00:01.9]} 49...
g2 {[%clk 0:00:16.8]} 0-1